fUST/lending_fUST_20240906
["ID","MTS","AMOUNT","RATE_DAILY","PERIOD"]
[337368300,1725631892439,-200.0,0.00021095,2]
[337368301,1725631892450,-500.0,0.00021095,2]
[337368302,1725631892461,-500.0,0.00021095,2]
[337368303,1725631892471,-2383.39,0.00021095,2]
[337368304,1725631892481,-500.0,0.00021095,2]
[337368305,1725631892491,-500.0,0.00021095,2]
[337368306,1725631892502,-1150.25,0.00021095,2]
[337368307,1725631892512,-500.0,0.00021095,2]
[337368308,1725631892523,-1383.67,0.00021095,2]
[337368309,1725631892536,-574.52,0.00021095,2]
[337368310,1725631892546,-500.0,0.00021095,2]
[337368311,1725631892557,-1055.24,0.00021095,2]
[337368312,1725631892571,-1183.94,0.00021095,2]
[337368313,1725631892585,-953.31,0.00021095,2]
[337368314,1725631892595,-500.0,0.00021095,2]
[337368315,1725631892607,-500.0,0.00021095,2]
[337368316,1725631892618,-500.0,0.00021095,2]
[337368317,1725631892628,-1004.18,0.00021095,2]
[337368318,1725631892641,-500.0,0.00021095,2]
[337368319,1725631892650,-500.0,0.00021095,2]
[337368320,1725631892660,-500.0,0.00021095,2]
[337368321,1725631892669,-500.0,0.00021095,2]
[337368322,1725631892679,-500.0,0.00021095,2]
[337368323,1725631892689,-500.0,0.00021095,2]
[337368324,1725631892699,-500.0,0.00021095,2]
[337368325,1725631892710,-609.29,0.00021095,2]
[337368326,1725631892719,-1073.16,0.00021095,2]
[337368327,1725631892732,-500.0,0.00021095,2]
[337368328,1725631892742,-542.017378,0.00021095,2]
[337368329,1725631892752,-500.0,0.00021095,2]
[337368330,1725631892762,-500.0,0.00021095,2]
[337368331,1725631892771,-500.0,0.00021095,2]
[337368332,1725631892780,-500.0,0.00021095,2]
[337368333,1725631892790,-500.0,0.00021095,2]
[337368334,1725631892801,-984.52,0.00021095,2]
[337368335,1725631892811,-500.0,0.00021095,2]
[337368336,1725631892824,-500.0,0.00021095,2]
[337368337,1725631892834,-802.18,0.00021095,2]
[337368338,1725631892844,-500.0,0.00021095,2]
[337368339,1725631892854,-502.79,0.00021095,2]
[337368340,1725631892864,-500.0,0.00021095,2]
[337368341,1725631892874,-500.0,0.00021095,2]
[337368342,1725631892884,-672.02,0.00021095,2]
[337368343,1725631892894,-1736.67,0.00021095,2]
[337368344,1725631892904,-2241.58,0.00021095,2]
[337368345,1725631892914,-500.0,0.00021095,2]
[337368346,1725631892923,-500.0,0.00021095,2]
[337368347,1725631892935,-500.0,0.00021095,2]
[337368348,1725631892945,-500.0,0.00021095,2]
[337368349,1725631892955,-709.85,0.00021095,2]
[337368350,1725631892966,-929.24,0.00021095,2]
[337368351,1725631892975,-789.68,0.00021095,2]
[337368352,1725631892986,-564.3,0.00021095,2]
[337368353,1725631893003,-500.0,0.00021095,2]
[337368354,1725631893017,-2150.56,0.00021095,2]
[337368355,1725631893027,-500.0,0.00021095,2]
[337368356,1725631893037,-500.0,0.00021095,2]
[337368357,1725631893048,-500.0,0.00021095,2]
[337368358,1725631893059,-774.77,0.00021095,2]
[337368359,1725631893072,-500.0,0.00021095,2]
[337368360,1725631893083,-500.0,0.00021095,2]
[337368361,1725631893093,-500.0,0.00021095,2]
[337368362,1725631893103,-1717.67,0.00021095,2]
[337368363,1725631893114,-537.94,0.00021095,2]
[337368364,1725631893125,-500.0,0.00021095,2]
[337368365,1725631893136,-500.0,0.00021095,2]
[337368366,1725631893147,-500.0,0.00021095,2]
[337368367,1725631893159,-501.02,0.00021095,2]
[337368368,1725631893170,-500.0,0.00021095,2]
[337368369,1725631893181,-500.0,0.00021095,2]
[337368370,1725631893191,-500.0,0.00021095,2]
[337368371,1725631893201,-1438.2,0.00021095,2]
[337368372,1725631893212,-500.0,0.00021095,2]
[337368373,1725631893222,-500.0,0.00021095,2]
[337368374,1725631893233,-564.71,0.00021095,2]
[337368375,1725631893243,-500.0,0.00021095,2]
[337368376,1725631893253,-1150.94,0.00021095,2]
[337368377,1725631893263,-500.0,0.00021095,2]
[337368378,1725631893273,-500.0,0.00021095,2]
[337368379,1725631893283,-500.0,0.00021095,2]
[337368380,1725631893294,-500.0,0.00021095,2]
[337368381,1725631893304,-500.35977735,0.00021095,2]
[337368382,1725631893316,-500.0,0.00021095,2]
[337368383,1725631893327,-1637.9,0.00021095,2]
[337368384,1725631893336,-3128.92,0.00021095,2]
[337368385,1725631893347,-500.0,0.00021095,2]
[337368386,1725631893356,-645.59,0.00021095,2]
[337368387,1725631893366,-500.0,0.00021095,2]
[337368388,1725631893376,-500.0,0.00021095,2]
[337368389,1725631893386,-500.0,0.00021095,2]
[337368390,1725631893395,-549.21,0.00021095,2]
[337368391,1725631893406,-500.0,0.00021095,2]
[337368392,1725631893415,-1354.63,0.00021095,2]
[337368393,1725631893426,-500.0,0.00021095,2]
[337368394,1725631893436,-588.01,0.00021095,2]
[337368395,1725631893447,-500.0,0.00021095,2]
[337368396,1725631893457,-500.0,0.00021095,2]
[337368397,1725631893467,-500.0,0.00021095,2]
[337368398,1725631893477,-500.0,0.00021095,2]
[337368399,1725631893487,-500.0,0.00021095,2]
[337368400,1725631893498,-500.0,0.00021095,2]
[337368401,1725631893508,-500.0,0.00021095,2]
[337368402,1725631893519,-696.17,0.00021095,2]
[337368403,1725631893530,-533.69430985,0.00021095,2]
[337368404,1725631893544,-2435.34,0.00021095,2]
[337368405,1725631893556,-500.0,0.00021095,2]
[337368406,1725631893574,-739.29,0.00021095,2]
[337368407,1725631893584,-500.0,0.00021095,2]
[337368408,1725631893594,-500.0,0.00021095,2]
[337368409,1725631893604,-712.06,0.00021095,2]
[337368410,1725631893616,-1437.93,0.00021095,2]
[337368411,1725631893627,-500.0,0.00021095,2]
[337368412,1725631893637,-500.0,0.00021095,2]
[337368413,1725631893648,-1254.48,0.00021095,2]
[337368414,1725631893657,-500.0,0.00021095,2]
[337368415,1725631893668,-500.0,0.00021095,2]
[337368416,1725631893678,-500.0,0.00021095,2]
[337368417,1725631893688,-547.87,0.00021095,2]
[337368418,1725631893699,-500.0,0.00021095,2]
[337368419,1725631893709,-1992.59,0.00021095,2]
[337368420,1725631893719,-579.46,0.00021095,2]
[337368421,1725631893729,-2436.65,0.00021095,2]
[337368422,1725631893739,-500.0,0.00021095,2]
[337368423,1725631893749,-500.0,0.00021095,2]
[337368424,1725631893760,-854.61,0.00021095,2]
[337368425,1725631893771,-500.0,0.00021095,2]
[337368426,1725631893781,-1053.85,0.00021095,2]
[337368427,1725631893791,-500.0,0.00021095,2]
[337368428,1725631893803,-619.13,0.00021095,2]
[337368429,1725631893813,-500.0,0.00021095,2]
[337368430,1725631893827,-500.0,0.00021095,2]
[337368431,1725631893837,-2391.77,0.00021095,2]
[337368432,1725631893847,-1773.27,0.00021095,2]
[337368433,1725631893858,-500.0,0.00021095,2]
[337368434,1725631893868,-1617.1,0.00021095,2]
[337368435,1725631894058,-985.06,0.00021095,2]
[337368436,1725631894086,-1012.85,0.00021095,2]
[337368437,1725631894096,-500.0,0.00021095,2]
[337368438,1725631894106,-1083.74,0.00021095,2]
[337368439,1725631894117,-500.0,0.00021095,2]
[337368440,1725631894129,-500.0,0.00021095,2]
[337368441,1725631894138,-993.62,0.00021095,2]
[337368442,1725631894148,-500.0,0.00021095,2]
[337368443,1725631894157,-500.0,0.00021095,2]
[337368444,1725631894167,-979.52,0.00021095,2]
[337368445,1725631894177,-500.0,0.00021095,2]
[337368446,1725631894188,-1448.57,0.00021095,2]
[337368447,1725631894197,-500.0,0.00021095,2]
[337368448,1725631894208,-500.0,0.00021095,2]
[337368449,1725631894218,-2065.07,0.00021095,2]
[337368450,1725631894227,-500.0,0.00021095,2]
[337368451,1725631894237,-500.0,0.00021095,2]
[337368452,1725631894246,-3583.08,0.00021095,2]
[337368453,1725631894257,-500.0,0.00021095,2]
[337368454,1725631894267,-521.02065932,0.00021095,2]
[337368455,1725631894276,-500.0,0.00021095,2]
[337368456,1725631894287,-765.11,0.00021095,2]
[337368457,1725631894297,-500.0,0.00021095,2]
[337368458,1725631894307,-2187.02,0.00021095,2]
[337368459,1725631894321,-548.62,0.00021095,2]
[337368460,1725631894331,-500.0,0.00021095,2]
[337368461,1725631894344,-600.2,0.00021095,2]
[337368462,1725631894354,-915.11,0.00021095,2]
[337368463,1725631894364,-526.84,0.00021095,2]
[337368464,1725631894374,-583.77,0.00021095,2]
[337368465,1725631894384,-500.0,0.00021095,2]
[337368466,1725631894395,-500.0,0.00021095,2]
[337368467,1725631894405,-500.0,0.00021095,2]
[337368468,1725631894415,-2820.38,0.00021095,2]
[337368469,1725631894424,-500.0,0.00021095,2]
[337368470,1725631894434,-3216.65,0.00021095,2]
[337368471,1725631894444,-3068.16,0.00021095,2]
[337368472,1725631894454,-500.0,0.00021095,2]
[337368473,1725631894467,-507.28666765,0.00021095,2]
[337368474,1725631894477,-500.0,0.00021095,2]
[337368475,1725631894488,-500.0,0.00021095,2]
[337368476,1725631894498,-500.0,0.00021095,2]
[337368477,1725631894509,-500.0,0.00021095,2]
[337368478,1725631894519,-2164.36,0.00021095,2]
[337368479,1725631894534,-500.0,0.00021095,2]
[337368480,1725631894544,-585.28,0.00021095,2]
[337368481,1725631894554,-500.0,0.00021095,2]
[337368482,1725631894568,-2677.65,0.00021095,2]
[337368483,1725631894577,-500.38,0.00021095,2]
[337368484,1725631894586,-2074.26,0.00021095,2]
[337368485,1725631894596,-2209.05,0.00021095,2]
[337368486,1725631894606,-500.0,0.00021095,2]
[337368487,1725631894617,-500.0,0.00021095,2]
[337368488,1725631894628,-3954.89,0.00021095,2]
[337368489,1725631894639,-500.0,0.00021095,2]
[337368490,1725631894649,-1651.0,0.00021095,2]
[337368491,1725631894660,-116314.01,0.00021095,2]
[337368492,1725631894670,-500.0,0.00021095,2]
[337368493,1725631894680,-500.0,0.00021095,2]
[337368494,1725631894690,-500.0,0.00021095,2]
[337368495,1725631894699,-9306.23,0.00021095,2]
[337368496,1725631894711,-1523.95,0.00021095,2]
[337368497,1725631894722,-500.0,0.00021095,2]
[337368498,1725631894733,-1087.16,0.00021095,2]
[337368499,1725631894745,-500.0,0.00021095,2]
[337368500,1725631894756,-541.23,0.00021095,2]
[337368501,1725631894766,-3472.66,0.00021095,2]
[337368502,1725631894775,-500.0,0.00021095,2]
[337368503,1725631894784,-500.0,0.00021095,2]
[337368504,1725631894794,-500.0,0.00021095,2]
[337368505,1725631894803,-1236.52,0.00021095,2]
[337368506,1725631894814,-1611.2,0.00021095,2]
[337368507,1725631894826,-500.0,0.00021095,2]
[337368508,1725631894836,-500.0,0.00021095,2]
[337368509,1725631894847,-500.0,0.00021095,2]
[337368510,1725631894859,-2055.17,0.00021095,2]
[337368511,1725631894868,-500.0,0.00021095,2]
[337368512,1725631894878,-1839.42,0.00021095,2]
[337368513,1725631894887,-500.0,0.00021095,2]
[337368514,1725631894897,-500.0,0.00021095,2]
[337368515,1725631894907,-500.0,0.00021095,2]
[337368516,1725631894916,-500.0,0.00021095,2]
[337368517,1725631894926,-500.0,0.00021095,2]
[337368518,1725631894936,-622.12,0.00021095,2]
[337368519,1725631894945,-2171.42,0.00021095,2]
[337368520,1725631894955,-745.9,0.00021095,2]
[337368521,1725631894965,-500.0,0.00021095,2]
[337368522,1725631894974,-1274.22,0.00021095,2]
[337368523,1725631894984,-500.0,0.00021095,2]
[337368524,1725631894994,-611.22,0.00021095,2]
[337368525,1725631895004,-1057.51,0.00021095,2]
[337368526,1725631895013,-845.53,0.00021095,2]
[337368527,1725631895023,-500.0,0.00021095,2]
[337368528,1725631895032,-500.0,0.00021095,2]
[337368529,1725631895043,-3522.6,0.00021095,2]
[337368530,1725631895053,-530.81,0.00021095,2]
[337368531,1725631895064,-500.0,0.00021095,2]
[337368532,1725631895077,-3286.15,0.00021095,2]
[337368533,1725631895086,-2863.53,0.00021095,2]
[337368534,1725631895095,-500.0,0.00021095,2]
[337368535,1725631895105,-651.92,0.00021095,2]
[337368536,1725631895115,-2848.96,0.00021095,2]
[337368537,1725631895124,-500.0,0.00021095,2]
[337368538,1725631895133,-2433.94,0.00021095,2]
[337368539,1725631895142,-500.0,0.00021095,2]
[337368540,1725631895152,-2928.81,0.00021095,2]
[337368541,1725631895161,-500.0,0.00021095,2]
[337368542,1725631895171,-2387.03,0.00021095,2]
[337368543,1725631895181,-654.7,0.00021095,2]
[337368544,1725631895190,-500.0,0.00021095,2]
[337368545,1725631895199,-1660.58,0.00021095,2]
[337368546,1725631895209,-500.0,0.00021095,2]
[337368547,1725631895219,-3345.77,0.00021095,2]
[337368548,1725631895228,-500.0,0.00021095,2]
[337368549,1725631895237,-3264.33,0.00021095,2]
[337368550,1725631895247,-500.0,0.00021095,2]
[337368551,1725631895257,-500.0,0.00021095,2]
[337368552,1725631895267,-1608.24,0.00021095,2]
[337368553,1725631895276,-1081.18,0.00021095,2]
[337368554,1725631895286,-587.81,0.00021095,2]
[337368555,1725631895297,-1370.51,0.00021095,2]
[337368556,1725631895307,-656.69,0.00021095,2]
[337368557,1725631895319,-500.0,0.00021095,2]
[337368558,1725631895329,-1055.34,0.00021095,2]
[337368559,1725631895340,-1952.4,0.00021095,2]
[337368560,1725631895349,-500.0,0.00021095,2]
[337368561,1725631895358,-3518.29,0.00021095,2]
[337368562,1725631895368,-500.0,0.00021095,2]
[337368563,1725631895377,-2418.27,0.00021095,2]
[337368564,1725631895386,-500.0,0.00021095,2]
[337368565,1725631895395,-6016.44,0.00021095,2]
[337368566,1725631895405,-500.0,0.00021095,2]
[337368567,1725631895414,-500.0,0.00021095,2]
[337368568,1725631895425,-1000.0,0.00021095,2]
[337368569,1725631895434,-500.0,0.00021095,2]
[337368570,1725631895444,-499.11125819,0.00021095,2]
[337368571,1725631895455,-837.34,0.00021095,2]
[337368572,1725631895465,-862.38,0.00021095,2]
[337368573,1725631895475,-500.0,0.00021095,2]
[337368574,1725631895485,-1887.14,0.00021095,2]
[337368575,1725631895494,-1963.85,0.00021095,2]
[337368576,1725631895504,-2273.13,0.00021095,2]
[337368577,1725631895513,-3757.23,0.00021095,2]
[337368578,1725631895523,-500.0,0.00021095,2]
[337368579,1725631895533,-500.0,0.00021095,2]
[337368580,1725631895545,-500.0,0.00021095,2]
[337368581,1725631895555,-500.0,0.00021095,2]
[337368582,1725631895565,-500.0,0.00021095,2]
[337368583,1725631895580,-500.0,0.00021095,2]
[337368584,1725631895596,-1009.77,0.00021095,2]
[337368585,1725631895605,-1475.95,0.00021095,2]
[337368586,1725631895615,-669.11,0.00021095,2]
[337368587,1725631895624,-429.58440895,0.00021095,2]
[337368588,1725631895635,-3550.63,0.00021095,2]
[337368589,1725631895644,-1203.77,0.00021095,2]
[337368590,1725631895653,-500.0,0.00021095,2]
[337368591,1725631895663,-1123.46,0.00021095,2]
[337368592,1725631895673,-1848.36,0.00021095,2]
[337368593,1725631895683,-3384.88,0.00021095,2]
[337368594,1725631895693,-710.64,0.00021095,2]
[337368595,1725631895702,-1535.68,0.00021095,2]
[337368596,1725631895711,-1036.44,0.00021095,2]
[337368597,1725631895721,-603.27,0.00021095,2]
[337368598,1725631895731,-500.0,0.00021095,2]
[337368599,1725631895740,-500.0,0.00021095,2]
[337368600,1725631895749,-3839.93,0.00021095,2]
[337368601,1725631895760,-500.0,0.00021095,2]
[337368602,1725631895769,-3368.52,0.00021095,2]
[337368603,1725631895779,-500.0,0.00021095,2]
[337368604,1725631895788,-547.17,0.00021095,2]
[337368605,1725631895798,-1934.78,0.00021095,2]
[337368606,1725631895807,-218.96142263,0.00021095,2]
[337368607,1725631895824,-500.0,0.00021095,2]
[337368608,1725631895835,-1894.75,0.00021095,2]
[337368609,1725631895844,-912.1,0.00021095,2]
[337368610,1725631895855,-716.25,0.00021095,2]
[337368611,1725631895865,-500.0,0.00021095,2]
[337368612,1725631895874,-500.0,0.00021095,2]
[337368613,1725631895883,-3216.8,0.00021095,2]
[337368614,1725631895892,-500.0,0.00021095,2]
[337368615,1725631895902,-1236.59,0.00021095,2]
[337368616,1725631895911,-1447.97,0.00021095,2]
[337368617,1725631895920,-3894.99,0.00021095,2]
[337368618,1725631895930,-500.0,0.00021095,2]
[337368619,1725631895940,-833.5,0.00021095,2]
[337368620,1725631895950,-1879.17,0.00021095,2]
[337368621,1725631895960,-1187.25,0.00021095,2]
[337368622,1725631895970,-500.0,0.00021095,2]
[337368623,1725631895979,-510.23,0.00021095,2]
[337368624,1725631895989,-725.44,0.00021095,2]
[337368625,1725631895998,-2343.94,0.00021095,2]
[337368626,1725631896008,-817.13,0.00021095,2]
[337368627,1725631896017,-2268.84,0.00021095,2]
[337368628,1725631896027,-3185.171304,0.000211,2]
[337368629,1725631896036,-300.0,0.000211,9]
[337368630,1725631896046,-505.3918499,0.000212,2]
[337368631,1725631896057,-777.41061719,0.00021356,2]
[337368632,1725631896072,-975.88,0.00021369,2]
[337368633,1725631896081,-502.29,0.00021369,2]
[337368634,1725631896091,-500.0,0.00021369,2]
[337368635,1725631896100,-500.0,0.00021369,2]
[337368636,1725631896110,-500.0,0.00021369,2]
[337368637,1725631896120,-500.0,0.00021369,2]
[337368638,1725631896131,-519.8774106,0.00021369,2]
[337368639,1725631896140,-500.0,0.00021369,2]
[337368640,1725631896150,-500.0,0.00021369,2]
[337368641,1725631896159,-500.0,0.00021369,2]
[337368642,1725631896169,-500.0,0.00021369,2]
[337368643,1725631896179,-500.0,0.00021369,2]
[337368644,1725631896188,-532.12,0.00021369,2]
[337368645,1725631896198,-501.56,0.00021369,2]
[337368646,1725631896207,-425.56559423,0.00021369,2]
[337368647,1725631896217,-500.0,0.00021369,2]
[337368648,1725631896227,-667.2,0.00021369,2]
[337368649,1725631896236,-500.0,0.00021369,2]
[337368650,1725631896245,-848.57,0.00021369,2]
[337368651,1725631896255,-500.0,0.00021369,2]
[337368652,1725631896264,-500.0,0.00021369,2]
[337368653,1725631896273,-500.0,0.00021369,2]
[337368654,1725631896283,-500.0,0.00021369,2]
[337368655,1725631896293,-500.0,0.00021369,2]
[337368656,1725631896302,-500.0,0.00021369,2]
[337368657,1725631896312,-500.0,0.00021369,2]
[337368658,1725631896326,-500.0,0.00021369,2]
[337368659,1725631896335,-676.68,0.00021369,2]
[337368660,1725631896344,-500.0,0.00021369,2]
[337368661,1725631896355,-500.0,0.00021369,2]
[337368662,1725631896365,-500.0,0.00021369,2]
[337368663,1725631896375,-636.07,0.00021369,2]
[337368664,1725631896384,-500.0,0.00021369,2]
[337368665,1725631896394,-500.0,0.00021369,2]
[337368666,1725631896404,-500.0,0.00021369,2]
[337368667,1725631896413,-500.0,0.00021369,2]
[337368668,1725631896423,-500.0,0.00021369,2]
[337368669,1725631896432,-500.0,0.00021369,2]
[337368670,1725631896442,-500.0,0.00021369,2]
[337368671,1725631896451,-718.23,0.00021369,2]
[337368672,1725631896460,-500.0,0.00021369,2]
[337368673,1725631896470,-500.0,0.00021369,2]
[337368674,1725631896479,-500.0,0.00021369,2]
[337368675,1725631896488,-500.0,0.00021369,2]
[337368676,1725631896498,-1651.41,0.00021369,2]
[337368677,1725631896507,-500.0,0.00021369,2]
[337368678,1725631896518,-526.44829085,0.00021369,2]
[337368679,1725631896532,-500.0,0.00021369,2]
[337368680,1725631896543,-1115.64,0.00021369,2]
[337368681,1725631896553,-1610.16,0.00021369,2]
[337368682,1725631896564,-500.0,0.00021369,2]
[337368683,1725631896578,-555.07,0.00021369,2]
[337368684,1725631896587,-500.0,0.00021369,2]
[337368685,1725631896597,-500.0,0.00021369,2]
[337368686,1725631896608,-522.21,0.00021369,2]
[337368687,1725631896618,-500.0,0.00021369,2]
[337368688,1725631896629,-500.0,0.00021369,2]
[337368689,1725631896639,-2093.39,0.00021369,2]
[337368690,1725631896651,-500.0,0.00021369,2]
[337368691,1725631896661,-648.33,0.00021369,2]
[337368692,1725631896670,-500.0,0.00021369,2]
[337368693,1725631896679,-500.0,0.00021369,2]
[337368694,1725631896688,-487.82003316,0.00021369,2]
[337368695,1725631896699,-2191.44,0.00021369,2]
[337368696,1725631896708,-532.42934094,0.00021369,2]
[337368697,1725631896717,-500.0,0.00021369,2]
[337368698,1725631896728,-500.0,0.00021369,2]
[337368699,1725631896739,-500.0,0.00021369,2]
[337368700,1725631896749,-500.0,0.00021369,2]
[337368701,1725631896760,-3029.51,0.00021369,2]
[337368702,1725631896769,-500.0,0.00021369,2]
[337368703,1725631896779,-500.0,0.00021369,2]
[337368704,1725631896789,-500.0,0.00021369,2]
[337368705,1725631896949,-500.0,0.00021369,2]
[337368706,1725631896959,-500.0,0.00021369,2]
[337368707,1725631896968,-503.82799804,0.00021369,2]
[337368708,1725631896978,-500.0,0.00021369,2]
[337368709,1725631896987,-504.08142319,0.00021369,2]
[337368710,1725631896996,-1309.28,0.00021369,2]
[337368711,1725631897006,-500.0,0.00021369,2]
[337368712,1725631897016,-2317.55,0.00021369,2]
[337368713,1725631897028,-500.0,0.00021369,2]
[337368714,1725631897039,-953.81,0.00021369,2]
[337368715,1725631897049,-2214.38,0.00021369,2]
[337368716,1725631897059,-252.05661798,0.00021369,2]
[337368717,1725631897070,-500.0,0.00021369,2]
[337368718,1725631897079,-500.0,0.00021369,2]
[337368719,1725631897089,-2383.39,0.00021369,2]
[337368720,1725631897098,-432.82724059,0.00021369,2]
[337368721,1725631897107,-500.0,0.00021369,2]
[337368722,1725631897117,-1150.25,0.00021369,2]
[337368723,1725631897127,-500.0,0.00021369,2]
[337368724,1725631897136,-1383.67,0.00021369,2]
[337368725,1725631897145,-574.52,0.00021369,2]
[337368726,1725631897155,-500.0,0.00021369,2]
[337368727,1725631897165,-1055.24,0.00021369,2]
[337368728,1725631897174,-1183.94,0.00021369,2]
[337368729,1725631897184,-953.31,0.00021369,2]
[337368730,1725631897193,-500.0,0.00021369,2]
[337368731,1725631897203,-500.0,0.00021369,2]
[337368732,1725631897213,-500.0,0.00021369,2]
[337368733,1725631897222,-1004.18,0.00021369,2]
[337368734,1725631897231,-500.0,0.00021369,2]
[337368735,1725631897240,-500.0,0.00021369,2]
[337368736,1725631897250,-500.0,0.00021369,2]
[337368737,1725631897259,-500.0,0.00021369,2]
[337368738,1725631897268,-391.64263787,0.00021369,2]
[337368739,1725631897277,-500.0,0.00021369,2]
[337368740,1725631897287,-500.0,0.00021369,2]
[337368741,1725631897297,-609.29,0.00021369,2]
[337368742,1725631897306,-1073.16,0.00021369,2]
[337368743,1725631897316,-500.73134344,0.00021369,2]
[337368744,1725631897331,-500.0,0.00021369,2]
[337368745,1725631897342,-500.0,0.00021369,2]
[337368746,1725631897351,-500.0,0.00021369,2]
[337368747,1725631897361,-500.0,0.00021369,2]
[337368748,1725631897371,-500.0,0.00021369,2]
[337368749,1725631897380,-984.52,0.00021369,2]
[337368750,1725631897390,-500.0,0.00021369,2]
[337368751,1725631897399,-500.0,0.00021369,2]
[337368752,1725631897409,-802.18,0.00021369,2]
[337368753,1725631897418,-500.0,0.00021369,2]
[337368754,1725631897428,-502.79,0.00021369,2]
[337368755,1725631897437,-500.0,0.00021369,2]
[337368756,1725631897448,-500.0,0.00021369,2]
[337368757,1725631897459,-672.02,0.00021369,2]
[337368758,1725631897474,-1736.67,0.00021369,2]
[337368759,1725631897483,-2241.58,0.00021369,2]
[337368760,1725631897492,-500.0,0.00021369,2]
[337368761,1725631897502,-628.40313927,0.00021369,2]
[337368762,1725631897512,-500.0,0.00021369,2]
[337368763,1725631897523,-500.0,0.00021369,2]
[337368764,1725631897535,-709.85,0.00021369,2]
[337368765,1725631897547,-929.24,0.00021369,2]
[337368766,1725631897557,-789.68,0.00021369,2]
[337368767,1725631897570,-500.0,0.00021369,2]
[337368768,1725631897579,-564.3,0.00021369,2]
[337368769,1725631897589,-2150.56,0.00021369,2]
[337368770,1725631897598,-500.0,0.00021369,2]
[337368771,1725631897607,-500.0,0.00021369,2]
[337368772,1725631897619,-500.0,0.00021369,2]
[337368773,1725631897628,-774.77,0.00021369,2]
[337368774,1725631897638,-500.0,0.00021369,2]
[337368775,1725631897648,-500.0,0.00021369,2]
[337368776,1725631897658,-500.0,0.00021369,2]
[337368777,1725631897667,-1717.67,0.00021369,2]
[337368778,1725631897677,-537.94,0.00021369,2]
[337368779,1725631897686,-500.0,0.00021369,2]
[337368780,1725631897695,-500.0,0.00021369,2]
[337368781,1725631897705,-552.0925542,0.00021369,2]
[337368782,1725631897714,-501.02,0.00021369,2]
[337368783,1725631897726,-500.0,0.00021369,2]
[337368784,1725631897736,-500.0,0.00021369,2]
[337368785,1725631897747,-500.0,0.00021369,2]
[337368786,1725631897757,-1438.2,0.00021369,2]
[337368787,1725631897767,-500.0,0.00021369,2]
[337368788,1725631897776,-500.0,0.00021369,2]
[337368789,1725631897786,-564.71,0.00021369,2]
[337368790,1725631897796,-500.0,0.00021369,2]
[337368791,1725631897805,-1150.94,0.00021369,2]
[337368792,1725631897814,-500.0,0.00021369,2]
[337368793,1725631897830,-500.0,0.00021369,2]
[337368794,1725631897840,-500.0,0.00021369,2]
[337368795,1725631897851,-500.0,0.00021369,2]
[337368796,1725631897863,-500.0,0.00021369,2]
[337368797,1725631897873,-1637.9,0.00021369,2]
[337368798,1725631897883,-3128.92,0.00021369,2]
[337368799,1725631897892,-500.0,0.00021369,2]